[Event "*** Titled Tuesday Blitz"]
[Site "Chess.com"]
[Date "2018.10.02"]
[Round "4"]
[White "EndgameGrinder"]
[Black "David_Paravyan"]
[Result "0-1"]
[WhiteElo "2486"]
[BlackElo "2810"]
[TimeControl "180+2"]
[EndTime "13:50:30 PDT"]
[Termination "David_Paravyan won by resignation"]

1. e4 {[%clk 0:03:01.9]} 1... c5 {[%clk 0:02:32.7]} 2. Nf3 {[%clk 0:03:02.9]}
2... d6 {[%clk 0:02:33]} 3. d4 {[%clk 0:03:04.5]} 3... cxd4 {[%clk 0:02:34.9]}
4. Nxd4 {[%clk 0:03:06.2]} 4... Nf6 {[%clk 0:02:36.5]} 5. Nc3 {[%clk 0:03:07.9]}
5... a6 {[%clk 0:02:36.8]} 6. Bg5 {[%clk 0:03:09.4]} 6... e6 {[%clk 0:02:35.4]}
7. f4 {[%clk 0:03:10.7]} 7... Nbd7 {[%clk 0:02:35.2]} 8. Qe2 {[%clk 0:03:11.1]}
8... Qc7 {[%clk 0:02:32.1]} 9. O-O-O {[%clk 0:03:10.8]} 9... b5 {[%clk
0:02:32.6]} 10. g4 {[%clk 0:02:48.3]} 10... Bb7 {[%clk 0:02:28.8]} 11. a3 {[%clk
0:02:46.3]} 11... Be7 {[%clk 0:02:27]} 12. Bg2 {[%clk 0:02:45.8]} 12... Qc4
{[%clk 0:02:26.2]} 13. Qd2 {[%clk 0:02:34.2]} 13... Rc8 {[%clk 0:01:58.4]} 14.
Bxf6 {[%clk 0:02:19.5]} 14... Bxf6 {[%clk 0:01:47.2]} 15. g5 {[%clk 0:02:20.1]}
15... Be7 {[%clk 0:01:29]} 16. h4 {[%clk 0:01:51.9]} 16... b4 {[%clk 0:01:21.4]}
17. axb4 {[%clk 0:01:52]} 17... Qxb4 {[%clk 0:01:23.3]} 18. h5 {[%clk
0:01:45.2]} 18... Nb6 {[%clk 0:01:14.8]} 19. Nb3 {[%clk 0:01:19.5]} 19... Nc4
{[%clk 0:01:07.9]} 20. Qd4 {[%clk 0:01:20.4]} 20... e5 {[%clk 0:01:07.1]} 21.
fxe5 {[%clk 0:01:20.8]} 21... Bxg5+ {[%clk 0:00:49]} 22. Kb1 {[%clk 0:01:21.9]}
22... O-O {[%clk 0:00:45.1]} 23. Nd5 {[%clk 0:00:55.9]} 23... Bxd5 {[%clk
0:00:45.1]} 24. exd5 {[%clk 0:00:52.1]} 24... Be3 {[%clk 0:00:45.6]} 25. Qd3
{[%clk 0:00:47.4]} 25... dxe5 {[%clk 0:00:45.5]} 26. d6 {[%clk 0:00:49.3]} 26...
Bd4 {[%clk 0:00:41.1]} 27. d7 {[%clk 0:00:26]} 27... Rcd8 {[%clk 0:00:41.6]} 28.
Bh3 {[%clk 0:00:23.4]} 28... Nxb2 {[%clk 0:00:41.8]} 29. Qe4 {[%clk 0:00:19.5]}
29... Na4 {[%clk 0:00:39.6]} 30. Rd3 {[%clk 0:00:11.2]} 30... Qc3 {[%clk
0:00:38]} 31. Kc1 {[%clk 0:00:06.8]} 31... Qb2+ {[%clk 0:00:32.4]} 32. Kd2
{[%clk 0:00:07.9]} 32... Nc3 {[%clk 0:00:33.1]} 33. Qc6 {[%clk 0:00:07.5]} 33...
Nb1+ {[%clk 0:00:26.6]} 34. Kd1 {[%clk 0:00:07]} 34... a5 {[%clk 0:00:26.5]} 35.
Nxd4 {[%clk 0:00:06.5]} 35... exd4 {[%clk 0:00:27.4]} 36. Re1 {[%clk 0:00:05.7]}
36... Qb8 {[%clk 0:00:13.4]} 37. Re7 {[%clk 0:00:04.9]} 37... h6 {[%clk
0:00:12.8]} 38. Kc1 {[%clk 0:00:04.9]} 38... Nc3 {[%clk 0:00:12.8]} 39. Rxc3
{[%clk 0:00:06.3]} 39... dxc3 {[%clk 0:00:13.6]} 40. Qxc3 {[%clk 0:00:08.2]}
40... Qd6 {[%clk 0:00:13.6]} 41. Qe3 {[%clk 0:00:07.4]} 41... a4 {[%clk
0:00:12.8]} 42. Re4 {[%clk 0:00:08.1]} 42... a3 {[%clk 0:00:13.9]} 43. Ra4
{[%clk 0:00:07.3]} 43... Rxd7 {[%clk 0:00:11.6]} 44. Bxd7 {[%clk 0:00:09.2]}
44... Qxd7 {[%clk 0:00:13.5]} 45. Rxa3 {[%clk 0:00:10.6]} 45... Re8 {[%clk
0:00:14.7]} 46. Qd3 {[%clk 0:00:10.9]} 46... Qxd3 {[%clk 0:00:13.7]} 47. Rxd3
{[%clk 0:00:10.2]} 47... Re5 {[%clk 0:00:15.1]} 48. c4 {[%clk 0:00:11.5]} 48...
Rxh5 {[%clk 0:00:15.6]} 49. Kc2 {[%clk 0:00:13]} 49... Rc5 {[%clk 0:00:15.7]}
50. Kc3 {[%clk 0:00:14.3]} 50... h5 {[%clk 0:00:16.6]} 51. Kd4 {[%clk
0:00:15.8]} 51... Rc8 {[%clk 0:00:17.1]} 52. Rh3 {[%clk 0:00:17.4]} 52... g6
{[%clk 0:00:18.1]} 53. c5 {[%clk 0:00:19.1]} 53... Kg7 {[%clk 0:00:19.8]} 54.
Kd5 {[%clk 0:00:20.1]} 54... f5 {[%clk 0:00:21]} 55. Kd6 {[%clk 0:00:20.4]}
55... f4 {[%clk 0:00:22.3]} 56. c6 {[%clk 0:00:20.9]} 56... Kf6 {[%clk
0:00:23.3]} 57. Kd7 {[%clk 0:00:22.2]} 57... Rh8 {[%clk 0:00:22]} 58. c7 {[%clk
0:00:22.6]} 58... Kf5 {[%clk 0:00:22]} 59. Rb3 {[%clk 0:00:22.2]} 59... Kg4
{[%clk 0:00:18.1]} 60. Kd6 {[%clk 0:00:22.4]} 60... Rc8 {[%clk 0:00:12.7]} 61.
Rb8 {[%clk 0:00:17.7]} 61... Rxc7 {[%clk 0:00:13.5]} 62. Kxc7 {[%clk 0:00:19.6]}
62... f3 {[%clk 0:00:11.7]} 63. Kd6 {[%clk 0:00:20.9]} 63... f2 {[%clk
0:00:08.8]} 64. Rf8 {[%clk 0:00:21.6]} 64... Kg3 {[%clk 0:00:10.1]} 65. Ke5
{[%clk 0:00:22.5]} 65... Kg2 {[%clk 0:00:10.1]} 66. Rf6 {[%clk 0:00:21.1]} 66...
f1=Q {[%clk 0:00:11]} 67. Rxg6+ {[%clk 0:00:22.1]} 67... Kh3 {[%clk 0:00:12]}
68. Rg5 {[%clk 0:00:21.6]} 68... h4 {[%clk 0:00:12.7]} 0-1

[Event "*** Titled Tuesday Blitz"]
[Site "Chess.com"]
[Date "2018.10.02"]
[Round "4"]
[White "Rashad_Zeynalli"]
[Black "dmosesov"]
[Result "1/2-1/2"]
[WhiteElo "2333"]
[BlackElo "2313"]
[TimeControl "180+2"]
[EndTime "13:55:03 PDT"]
[Termination "Game drawn by 50-move rule"]

1. e4 {[%clk 0:03:01.1]} 1... c5 {[%clk 0:03:00.3]} 2. Nf3 {[%clk 0:02:58]} 2...
e6 {[%clk 0:03:01]} 3. d4 {[%clk 0:02:58.8]} 3... cxd4 {[%clk 0:03:02.9]} 4.
Nxd4 {[%clk 0:03:00.1]} 4... Nc6 {[%clk 0:03:03.6]} 5. Nc3 {[%clk 0:03:00.9]}
5... Qc7 {[%clk 0:03:04.4]} 6. Be3 {[%clk 0:02:56.7]} 6... a6 {[%clk 0:03:05.3]}
7. Qd2 {[%clk 0:02:56.7]} 7... Nf6 {[%clk 0:03:06.5]} 8. O-O-O {[%clk
0:02:56.2]} 8... Bb4 {[%clk 0:03:07]} 9. f3 {[%clk 0:02:56.6]} 9... Ne5 {[%clk
0:02:48.9]} 10. Nb3 {[%clk 0:02:55]} 10... O-O {[%clk 0:02:39.5]} 11. Qd4 {[%clk
0:02:54.1]} 11... Nc6 {[%clk 0:02:35.8]} 12. Qd2 {[%clk 0:02:47.8]} 12... Na5
{[%clk 0:02:28.9]} 13. Bd4 {[%clk 0:02:35.9]} 13... Nxb3+ {[%clk 0:01:55]} 14.
axb3 {[%clk 0:02:34]} 14... Qa5 {[%clk 0:01:55.8]} 15. Kb1 {[%clk 0:02:31.6]}
15... e5 {[%clk 0:01:49.8]} 16. Be3 {[%clk 0:02:30.4]} 16... b5 {[%clk
0:01:47.3]} 17. g4 {[%clk 0:02:21.5]} 17... d5 {[%clk 0:01:42]} 18. exd5 {[%clk
0:02:17.6]} 18... Bb7 {[%clk 0:01:41.7]} 19. Qd3 {[%clk 0:01:56.5]} 19... Rac8
{[%clk 0:01:34]} 20. Bd2 {[%clk 0:01:52.9]} 20... Rfd8 {[%clk 0:01:18.4]} 21.
Na2 {[%clk 0:00:57]} 21... Bxd2 {[%clk 0:01:16.2]} 22. Qxd2 {[%clk 0:00:58.9]}
22... Qxd2 {[%clk 0:01:16.1]} 23. Rxd2 {[%clk 0:01:00.8]} 23... Bxd5 {[%clk
0:01:10.8]} 24. Be2 {[%clk 0:00:54.6]} 24... Bb7 {[%clk 0:00:41.1]} 25. Rhd1
{[%clk 0:00:54.5]} 25... Rxd2 {[%clk 0:00:41.9]} 26. Rxd2 {[%clk 0:00:56.4]}
26... e4 {[%clk 0:00:43.5]} 27. fxe4 {[%clk 0:00:54.2]} 27... Nxe4 {[%clk
0:00:45.4]} 28. Rd7 {[%clk 0:00:54.2]} 28... Nc5 {[%clk 0:00:40.6]} 29. Re7
{[%clk 0:00:49.1]} 29... Kf8 {[%clk 0:00:38.2]} 30. Re5 {[%clk 0:00:49.5]} 30...
f6 {[%clk 0:00:37]} 31. Re3 {[%clk 0:00:50.2]} 31... Rd8 {[%clk 0:00:31.1]} 32.
Kc1 {[%clk 0:00:49]} 32... Nd7 {[%clk 0:00:27]} 33. c4 {[%clk 0:00:42.2]} 33...
Ne5 {[%clk 0:00:24.8]} 34. h3 {[%clk 0:00:38.3]} 34... Rc8 {[%clk 0:00:23.2]}
35. Rc3 {[%clk 0:00:37.2]} 35... bxc4 {[%clk 0:00:21.6]} 36. bxc4 {[%clk
0:00:39.1]} 36... Nc6 {[%clk 0:00:20.4]} 37. b3 {[%clk 0:00:38.6]} 37... Nd4
{[%clk 0:00:19.1]} 38. Bd1 {[%clk 0:00:40.1]} 38... Re8 {[%clk 0:00:19]} 39. Rd3
{[%clk 0:00:40.6]} 39... Nc6 {[%clk 0:00:16.2]} 40. Rd7 {[%clk 0:00:37.8]} 40...
Bc8 {[%clk 0:00:16.9]} 41. Rc7 {[%clk 0:00:38.8]} 41... Ne5 {[%clk 0:00:18.2]}
42. Nb4 {[%clk 0:00:39.1]} 42... Rd8 {[%clk 0:00:19.1]} 43. Nd5 {[%clk
0:00:38.4]} 43... Be6 {[%clk 0:00:17.9]} 44. Nf4 {[%clk 0:00:33.6]} 44... Bf7
{[%clk 0:00:17.4]} 45. Ra7 {[%clk 0:00:33.5]} 45... Rd6 {[%clk 0:00:16.7]} 46.
c5 {[%clk 0:00:34.1]} 46... Rc6 {[%clk 0:00:17.5]} 47. b4 {[%clk 0:00:35.7]}
47... g5 {[%clk 0:00:18.7]} 48. Ba4 {[%clk 0:00:31.7]} 48... gxf4 {[%clk
0:00:18.5]} 49. Bxc6 {[%clk 0:00:31.9]} 49... Nxc6 {[%clk 0:00:20.4]} 50. Rxa6
{[%clk 0:00:32.4]} 50... Nxb4 {[%clk 0:00:21.7]} 51. Rxf6 {[%clk 0:00:33.9]}
51... Nd3+ {[%clk 0:00:21.6]} 52. Kd2 {[%clk 0:00:33.6]} 52... Nxc5 {[%clk
0:00:23.5]} 53. Rxf4 {[%clk 0:00:34.7]} 53... Kg7 {[%clk 0:00:25.1]} 54. Rb4
{[%clk 0:00:34.6]} 54... Ne6 {[%clk 0:00:26.7]} 55. Ke3 {[%clk 0:00:34.6]} 55...
Kg6 {[%clk 0:00:27.8]} 56. h4 {[%clk 0:00:35.2]} 56... h6 {[%clk 0:00:28.2]} 57.
Rb6 {[%clk 0:00:36.4]} 57... Kg7 {[%clk 0:00:28.6]} 58. Ke4 {[%clk 0:00:36.4]}
58... Nc5+ {[%clk 0:00:29.3]} 59. Kf5 {[%clk 0:00:35.6]} 59... Nd3 {[%clk
0:00:27.1]} 60. g5 {[%clk 0:00:33]} 60... hxg5 {[%clk 0:00:27.5]} 61. hxg5
{[%clk 0:00:28]} 61... Nc5 {[%clk 0:00:25.4]} 62. g6 {[%clk 0:00:24.8]} 62...
Be6+ {[%clk 0:00:26]} 63. Kg5 {[%clk 0:00:22.1]} 63... Bd7 {[%clk 0:00:25]} 64.
Kh5 {[%clk 0:00:19.5]} 64... Ne6 {[%clk 0:00:23.3]} 65. Rb7 {[%clk 0:00:19.6]}
65... Nf8 {[%clk 0:00:23.7]} 66. Kg5 {[%clk 0:00:18.4]} 66... Ne6+ {[%clk
0:00:23.7]} 67. Kh5 {[%clk 0:00:19]} 67... Nf8 {[%clk 0:00:24.3]} 68. Ra7 {[%clk
0:00:19.8]} 68... Kf6 {[%clk 0:00:09.8]} 69. Kh6 {[%clk 0:00:20]} 69... Nxg6
{[%clk 0:00:10.8]} 70. Rxd7 {[%clk 0:00:21.4]} 70... Ne5 {[%clk 0:00:11.9]} 71.
Rd6+ {[%clk 0:00:22.3]} 71... Kf5 {[%clk 0:00:12.6]} 72. Kg7 {[%clk 0:00:23.8]}
72... Ke4 {[%clk 0:00:12]} 73. Kf6 {[%clk 0:00:24.1]} 73... Ng4+ {[%clk
0:00:11.8]} 74. Ke6 {[%clk 0:00:25]} 74... Ne5 {[%clk 0:00:12.6]} 75. Ra6 {[%clk
0:00:26.1]} 75... Nc4 {[%clk 0:00:12.2]} 76. Ra4 {[%clk 0:00:26.9]} 76... Kd4
{[%clk 0:00:13]} 77. Ra1 {[%clk 0:00:28.4]} 77... Ne3 {[%clk 0:00:12.8]} 78. Rc1
{[%clk 0:00:28.5]} 78... Nc4 {[%clk 0:00:13.1]} 79. Rd1+ {[%clk 0:00:29]} 79...
Ke4 {[%clk 0:00:14.6]} 80. Rd8 {[%clk 0:00:29]} 80... Ne3 {[%clk 0:00:14.8]} 81.
Rh8 {[%clk 0:00:29.3]} 81... Kf4 {[%clk 0:00:16]} 82. Rh4+ {[%clk 0:00:29.9]}
82... Ng4 {[%clk 0:00:17.2]} 83. Kd5 {[%clk 0:00:29.5]} 83... Kf5 {[%clk
0:00:18.3]} 84. Rh1 {[%clk 0:00:29.7]} 84... Kf4 {[%clk 0:00:19.1]} 85. Rf1+
{[%clk 0:00:31]} 85... Ke3 {[%clk 0:00:18.7]} 86. Rf8 {[%clk 0:00:31.1]} 86...
Kd3 {[%clk 0:00:18.3]} 87. Rf3+ {[%clk 0:00:31.2]} 87... Ne3+ {[%clk 0:00:17.7]}
88. Ke5 {[%clk 0:00:32.7]} 88... Ke2 {[%clk 0:00:18.9]} 89. Ke4 {[%clk
0:00:33.7]} 89... Nf1 {[%clk 0:00:20.1]} 90. Rh3 {[%clk 0:00:32.5]} 90... Nd2+
{[%clk 0:00:20.8]} 91. Kd4 {[%clk 0:00:33.7]} 91... Nf3+ {[%clk 0:00:21.8]} 92.
Kd5 {[%clk 0:00:34.1]} 92... Ke3 {[%clk 0:00:22.3]} 93. Rh8 {[%clk 0:00:35.1]}
93... Kd3 {[%clk 0:00:19.7]} 94. Re8 {[%clk 0:00:35.4]} 94... Nd4 {[%clk
0:00:18.3]} 95. Rh8 {[%clk 0:00:35.8]} 95... Nc2 {[%clk 0:00:18.8]} 96. Rh3+
{[%clk 0:00:36.4]} 96... Ne3+ {[%clk 0:00:20]} 97. Ke5 {[%clk 0:00:37.9]} 97...
Ke2 {[%clk 0:00:17.6]} 98. Ke4 {[%clk 0:00:38.8]} 98... Nf1 {[%clk 0:00:10.5]}
99. Ra3 {[%clk 0:00:39.5]} 99... Nd2+ {[%clk 0:00:11.4]} 100. Kf4 {[%clk
0:00:40.4]} 100... Nf1 {[%clk 0:00:11.1]} 101. Ke4 {[%clk 0:00:40]} 101... Nd2+
{[%clk 0:00:11.7]} 102. Kd4 {[%clk 0:00:41.4]} 102... Nf3+ {[%clk 0:00:12.2]}
103. Ke4 {[%clk 0:00:39.8]} 103... Nd2+ {[%clk 0:00:12.9]} 104. Kf4 {[%clk
0:00:40.9]} 104... Nf1 {[%clk 0:00:12.8]} 105. Rb3 {[%clk 0:00:42.4]} 105... Nd2
{[%clk 0:00:13.8]} 106. Re3+ {[%clk 0:00:43.9]} 106... Kd1 {[%clk 0:00:14.6]}
107. Rd3 {[%clk 0:00:43.1]} 107... Kc2 {[%clk 0:00:15.6]} 108. Ke3 {[%clk
0:00:43.7]} 108... Nc4+ {[%clk 0:00:15.3]} 109. Kd4 {[%clk 0:00:44.9]} 109...
Nd2 {[%clk 0:00:06.3]} 110. Rc3+ {[%clk 0:00:46.1]} 110... Kd1 {[%clk
0:00:07.2]} 111. Ke3 {[%clk 0:00:47.3]} 111... Nb1 {[%clk 0:00:07.6]} 112. Rc8
{[%clk 0:00:47.4]} 112... Na3 {[%clk 0:00:07.2]} 113. Kd3 {[%clk 0:00:48.4]}
113... Nb1 {[%clk 0:00:06.9]} 114. Rc7 {[%clk 0:00:47.6]} 114... Na3 {[%clk
0:00:07.1]} 115. Rb7 {[%clk 0:00:45.7]} 115... Kc1 {[%clk 0:00:06.2]} 116. Rb4
{[%clk 0:00:43.3]} 116... Nb1 {[%clk 0:00:07.2]} 117. Rb3 {[%clk 0:00:44.3]}
117... Nd2 {[%clk 0:00:07]} 118. Rc3+ {[%clk 0:00:45.1]} 118... Kd1 {[%clk
0:00:08.2]} 119. Ra3 {[%clk 0:00:46.3]} 119... Kc1 {[%clk 0:00:08.5]} 120. Ra8
{[%clk 0:00:45.4]} 120... Nb1 {[%clk 0:00:08.9]} 121. Ra7 {[%clk 0:00:44.9]}
121... Kb2 {[%clk 0:00:08.5]} 1/2-1/2

[Event "*** Titled Tuesday Blitz"]
[Site "Chess.com"]
[Date "2018.10.02"]
[Round "5"]
[White "BasilSmash"]
[Black "Iball95"]
[Result "0-1"]
[WhiteElo "2397"]
[BlackElo "2585"]
[TimeControl "180+2"]
[EndTime "13:59:48 PDT"]
[Termination "Iball95 won by resignation"]

1. d4 {[%clk 0:03:01.9]} 1... Nf6 {[%clk 0:02:58.9]} 2. Bf4 {[%clk 0:03:02.5]}
2... c5 {[%clk 0:02:55]} 3. d5 {[%clk 0:03:02]} 3... g6 {[%clk 0:02:48.5]} 4.
Nc3 {[%clk 0:03:00.8]} 4... Bg7 {[%clk 0:02:49.6]} 5. e4 {[%clk 0:03:01.6]} 5...
O-O {[%clk 0:02:50.2]} 6. Nf3 {[%clk 0:02:59.1]} 6... d6 {[%clk 0:02:44]} 7. h3
{[%clk 0:02:57.7]} 7... b5 {[%clk 0:02:43]} 8. Bxb5 {[%clk 0:02:39.3]} 8... Nxe4
{[%clk 0:02:43.1]} 9. Nxe4 {[%clk 0:02:40.3]} 9... Qa5+ {[%clk 0:02:43.7]} 10.
c3 {[%clk 0:02:40.9]} 10... Qxb5 {[%clk 0:02:44.4]} 11. Qe2 {[%clk 0:02:40.1]}
11... Qa4 {[%clk 0:02:22.5]} 12. O-O {[%clk 0:02:37.8]} 12... Ba6 {[%clk
0:02:22.7]} 13. Qe3 {[%clk 0:02:36.5]} 13... Bxf1 {[%clk 0:02:22.7]} 14. Rxf1
{[%clk 0:02:38.4]} 14... Nd7 {[%clk 0:02:24]} 15. Bh6 {[%clk 0:02:38.4]} 15...
Qxa2 {[%clk 0:02:22.7]} 16. Qf4 {[%clk 0:02:32.8]} 16... Qxd5 {[%clk 0:02:21.9]}
17. Qh4 {[%clk 0:02:30.2]} 17... f6 {[%clk 0:02:17.8]} 18. Re1 {[%clk
0:02:25.5]} 18... Rab8 {[%clk 0:02:14.6]} 19. c4 {[%clk 0:02:21.6]} 19... Qh5
{[%clk 0:02:06.6]} 20. Qxh5 {[%clk 0:02:21.6]} 20... gxh5 {[%clk 0:02:08.4]} 21.
Bxg7 {[%clk 0:02:23.5]} 21... Kxg7 {[%clk 0:02:09.5]} 22. Ng3 {[%clk 0:02:25.4]}
22... Ne5 {[%clk 0:02:09.6]} 23. Nxh5+ {[%clk 0:02:24.6]} 23... Kf7 {[%clk
0:02:10.7]} 24. Nh4 {[%clk 0:02:25.2]} 24... Rxb2 {[%clk 0:02:09.3]} 25. Nf5
{[%clk 0:02:25.8]} 25... a5 {[%clk 0:02:05.5]} 26. f4 {[%clk 0:02:25.9]} 26...
Nc6 {[%clk 0:02:05.4]} 27. g4 {[%clk 0:02:18]} 27... a4 {[%clk 0:02:06.2]} 28.
Nhg7 {[%clk 0:02:14.1]} 28... a3 {[%clk 0:02:05]} 29. Ne6 {[%clk 0:02:15.1]}
29... a2 {[%clk 0:02:00.3]} 30. Nh6+ {[%clk 0:02:15.2]} 30... Ke8 {[%clk
0:01:58.4]} 0-1

[Event "*** Titled Tuesday Blitz"]
[Site "Chess.com"]
[Date "2018.10.02"]
[Round "5"]
[White "ViktorMatviishen"]
[Black "mishanick"]
[Result "0-1"]
[WhiteElo "2477"]
[BlackElo "2847"]
[TimeControl "180+2"]
[EndTime "14:00:05 PDT"]
[Termination "mishanick won by resignation"]

1. d4 {[%clk 0:03:01.9]} 1... Nf6 {[%clk 0:03:00.6]} 2. c4 {[%clk 0:03:03.1]}
2... e6 {[%clk 0:03:01.8]} 3. Nf3 {[%clk 0:03:04]} 3... d5 {[%clk 0:03:03.2]} 4.
g3 {[%clk 0:03:04.6]} 4... Bb4+ {[%clk 0:03:03.8]} 5. Bd2 {[%clk 0:03:05.5]}
5... Be7 {[%clk 0:03:05.3]} 6. Bg2 {[%clk 0:03:05.7]} 6... c6 {[%clk 0:03:06.9]}
7. Qc2 {[%clk 0:03:06.6]} 7... O-O {[%clk 0:03:07.9]} 8. O-O {[%clk 0:03:07.6]}
8... b6 {[%clk 0:03:09.5]} 9. b3 {[%clk 0:03:07.9]} 9... a5 {[%clk 0:03:10.1]}
10. Nc3 {[%clk 0:03:07.5]} 10... Ba6 {[%clk 0:03:10.3]} 11. Ne5 {[%clk
0:02:50.7]} 11... Nfd7 {[%clk 0:03:05.4]} 12. Rfd1 {[%clk 0:02:15.1]} 12... Nxe5
{[%clk 0:03:04.6]} 13. dxe5 {[%clk 0:02:15.4]} 13... Nd7 {[%clk 0:03:02.3]} 14.
Bf4 {[%clk 0:02:01.1]} 14... g5 {[%clk 0:03:02.7]} 15. Be3 {[%clk 0:02:01.5]}
15... Nxe5 {[%clk 0:03:02.3]} 16. h3 {[%clk 0:01:26.1]} 16... Bf6 {[%clk
0:02:54.6]} 17. Rac1 {[%clk 0:01:24.1]} 17... Rc8 {[%clk 0:02:54.8]} 18. Ne4
{[%clk 0:01:22.4]} 18... Be7 {[%clk 0:02:49.9]} 19. Nxg5 {[%clk 0:01:02.7]}
19... Bxg5 {[%clk 0:02:48.4]} 20. f4 {[%clk 0:01:04.2]} 20... Bh6 {[%clk
0:02:49.1]} 21. g4 {[%clk 0:00:56.2]} 21... Ng6 {[%clk 0:02:48.8]} 22. g5 {[%clk
0:00:57]} 22... Bg7 {[%clk 0:02:49.8]} 23. Qd2 {[%clk 0:00:46]} 23... Qd6 {[%clk
0:02:43.2]} 24. Bxb6 {[%clk 0:00:42.9]} 24... Nxf4 {[%clk 0:02:42.6]} 25. e3
{[%clk 0:00:41.3]} 25... Nxg2 {[%clk 0:02:43]} 26. Qxg2 {[%clk 0:00:43.2]} 26...
c5 {[%clk 0:02:39.6]} 27. Bxa5 {[%clk 0:00:44]} 27... Bb7 {[%clk 0:02:41]} 28.
Bc3 {[%clk 0:00:43.4]} 28... d4 {[%clk 0:02:42.2]} 0-1

[Event "*** Titled Tuesday Blitz"]
[Site "Chess.com"]
[Date "2018.10.02"]
[Round "5"]
[White "Thjop"]
[Black "hurricane7791"]
[Result "1/2-1/2"]
[WhiteElo "2626"]
[BlackElo "2689"]
[TimeControl "180+2"]
[EndTime "14:00:35 PDT"]
[Termination "Game drawn by agreement"]

1. e4 {[%clk 0:03:00.8]} 1... c5 {[%clk 0:03:00.9]} 2. Nf3 {[%clk 0:03:01.3]}
2... d6 {[%clk 0:03:02.1]} 3. Bb5+ {[%clk 0:02:59.3]} 3... Nc6 {[%clk
0:03:01.4]} 4. O-O {[%clk 0:02:58.9]} 4... Bd7 {[%clk 0:03:02.7]} 5. c3 {[%clk
0:02:56.5]} 5... a6 {[%clk 0:03:03.6]} 6. Ba4 {[%clk 0:02:52.8]} 6... Nf6 {[%clk
0:03:03.5]} 7. Re1 {[%clk 0:02:53.1]} 7... c4 {[%clk 0:03:04.8]} 8. Bc2 {[%clk
0:02:46.8]} 8... e6 {[%clk 0:02:54.7]} 9. a4 {[%clk 0:02:44.4]} 9... b5 {[%clk
0:02:55.2]} 10. axb5 {[%clk 0:02:28.4]} 10... axb5 {[%clk 0:02:57.1]} 11. Rxa8
{[%clk 0:02:29.1]} 11... Qxa8 {[%clk 0:02:59]} 12. Na3 {[%clk 0:02:30.3]} 12...
Qb7 {[%clk 0:02:52.8]} 13. d4 {[%clk 0:02:26.7]} 13... cxd3 {[%clk 0:02:53.7]}
14. Bxd3 {[%clk 0:02:25.4]} 14... Ne5 {[%clk 0:02:53.7]} 15. Nxe5 {[%clk
0:02:25.2]} 15... dxe5 {[%clk 0:02:55.6]} 16. b4 {[%clk 0:02:15.1]} 16... Be7
{[%clk 0:02:52.7]} 17. Qe2 {[%clk 0:02:14.5]} 17... O-O {[%clk 0:02:53.9]} 18.
Bg5 {[%clk 0:01:53.6]} 18... Rb8 {[%clk 0:02:50.9]} 19. Ra1 {[%clk 0:01:32.3]}
19... Bc6 {[%clk 0:02:48.5]} 20. Bxf6 {[%clk 0:01:22.5]} 20... Bxf6 {[%clk
0:02:50.4]} 21. Nxb5 {[%clk 0:01:15.1]} 21... Ra8 {[%clk 0:02:48.7]} 22. Rxa8+
{[%clk 0:01:13.6]} 22... Qxa8 {[%clk 0:02:50.6]} 23. g3 {[%clk 0:01:13.5]} 23...
Bxb5 {[%clk 0:02:43.5]} 24. Bxb5 {[%clk 0:01:14]} 24... Qa1+ {[%clk 0:02:45.4]}
25. Kg2 {[%clk 0:01:13.8]} 25... Qxc3 {[%clk 0:02:46.8]} 26. Qc4 {[%clk
0:01:12.2]} 26... Qxc4 {[%clk 0:02:47.5]} 27. Bxc4 {[%clk 0:01:14.1]} 27... Be7
{[%clk 0:02:49.4]} 28. b5 {[%clk 0:01:15.1]} 28... Bc5 {[%clk 0:02:51]} 29. f3
{[%clk 0:01:16.2]} 29... Kf8 {[%clk 0:02:52.5]} 30. Kf1 {[%clk 0:01:17.4]} 30...
Ke7 {[%clk 0:02:54.4]} 31. Ke2 {[%clk 0:01:18.7]} 31... Kd6 {[%clk 0:02:55.7]}
32. Kd3 {[%clk 0:01:18.1]} 32... g5 {[%clk 0:02:56.8]} 33. h3 {[%clk 0:01:12.2]}
33... f5 {[%clk 0:02:57.6]} 34. g4 {[%clk 0:01:10.2]} 34... f4 {[%clk
0:02:52.2]} 35. Kc3 {[%clk 0:01:09.1]} 35... h6 {[%clk 0:02:52.9]} 36. Bb3
{[%clk 0:01:07]} 36... Bd4+ {[%clk 0:02:51.3]} 37. Kc4 {[%clk 0:01:07.6]} 37...
Bb6 {[%clk 0:02:53.2]} 38. Kb4 {[%clk 0:01:07.2]} 38... Kd7 {[%clk 0:02:54.4]}
39. Bc2 {[%clk 0:01:05.3]} 39... Kd6 {[%clk 0:02:55.8]} 40. Bd3 {[%clk
0:01:06.4]} 40... Kd7 {[%clk 0:02:57]} 41. Bc4 {[%clk 0:01:07.6]} 41... Kd6
{[%clk 0:02:58.4]} 42. Bb3 {[%clk 0:01:06.7]} 42... Kd7 {[%clk 0:02:59.7]} 43.
Kc4 {[%clk 0:01:08.1]} 43... Kd6 {[%clk 0:03:01]} 44. Bd1 {[%clk 0:01:08.8]}
44... Kd7 {[%clk 0:03:01.8]} 1/2-1/2

[Event "*** Titled Tuesday Blitz"]
[Site "Chess.com"]
[Date "2018.10.02"]
[Round "5"]
[White "Tjktiger"]
[Black "Kirill_Klukin"]
[Result "1-0"]
[WhiteElo "2712"]
[BlackElo "2606"]
[TimeControl "180+2"]
[EndTime "14:01:19 PDT"]
[Termination "Tjktiger won by resignation"]

1. d4 {[%clk 0:03:01.9]} 1... Nf6 {[%clk 0:03:00.8]} 2. c4 {[%clk 0:03:02.9]}
2... e6 {[%clk 0:03:02.2]} 3. Nc3 {[%clk 0:03:01.7]} 3... d5 {[%clk 0:03:03.4]}
4. cxd5 {[%clk 0:02:59.4]} 4... exd5 {[%clk 0:03:04.3]} 5. Bg5 {[%clk
0:02:59.9]} 5... Bb4 {[%clk 0:03:05.1]} 6. e3 {[%clk 0:02:53.1]} 6... Nbd7
{[%clk 0:03:05.5]} 7. Bd3 {[%clk 0:02:52.8]} 7... c5 {[%clk 0:03:06.5]} 8. Ne2
{[%clk 0:02:51.2]} 8... Qa5 {[%clk 0:02:44.6]} 9. O-O {[%clk 0:02:50.9]} 9... h5
{[%clk 0:02:45.6]} 10. dxc5 {[%clk 0:02:38.3]} 10... Bxc5 {[%clk 0:02:30.2]} 11.
a3 {[%clk 0:02:36.8]} 11... Be7 {[%clk 0:02:30.5]} 12. b4 {[%clk 0:02:36.5]}
12... Qb6 {[%clk 0:02:29]} 13. Nf4 {[%clk 0:02:28.6]} 13... Qd6 {[%clk
0:01:27.9]} 14. Rc1 {[%clk 0:02:28.4]} 14... a6 {[%clk 0:01:25.3]} 15. Re1
{[%clk 0:02:00.8]} 15... O-O {[%clk 0:01:15.4]} 16. Ncxd5 {[%clk 0:01:56.9]}
16... Nxd5 {[%clk 0:01:01.4]} 17. Bxe7 {[%clk 0:01:57.4]} 17... Qxe7 {[%clk
0:01:02.5]} 18. Nxd5 {[%clk 0:01:54.8]} 18... Qg5 {[%clk 0:01:04]} 19. f4 {[%clk
0:01:48.7]} 19... Qh6 {[%clk 0:00:51.4]} 20. Bf5 {[%clk 0:01:40.6]} 20... Qd6
{[%clk 0:00:24.5]} 21. Nc7 {[%clk 0:01:32.4]} 1-0